[Event "Titled Tuesday Blitz November 14 Late 2023"]
[White "Naroditsky, Daniel"]
[Black "Chigaev, Maksim"]
[WhiteFideId "2026961"]
[BlackFideId "4108116"]
[WhiteElo "3103"]
[BlackElo "2935"]
[Result "1-0"]
[Round "6"]
[TimeControl "180+1"]
[Date "2023.11.14"]
[WhiteClock "0:00:04"]
[BlackClock "0:00:00"]
[Board "5"]

1. e4 {[%clk 0:02:51]}  e6 {[%clk 0:03:00]} 2. d4 {[%clk 0:02:45]}  d5 {[%clk 0:02:59]} 3. Nd2 {[%clk 0:02:46]}  c5 {[%clk 0:02:58]} 4. Ngf3 {[%clk 0:02:46]}  cxd4 {[%clk 0:02:57]} 5. Nxd4 {[%clk 0:02:47]}  Nf6 {[%clk 0:02:57]} 6. exd5 {[%clk 0:02:46]}  Qxd5 {[%clk 0:02:58]} 7. Nb5 {[%clk 0:02:46]}  Na6 {[%clk 0:02:57]} 8. Nc3 {[%clk 0:02:45]}  Qd6 {[%clk 0:02:56]} 9. Bb5+ {[%clk 0:02:32]}  Bd7 {[%clk 0:02:56]} 10. O-O {[%clk 0:02:31]}  Be7 {[%clk 0:02:48]} 11. Nc4 {[%clk 0:02:00]}  Qxd1 {[%clk 0:02:47]} 12. Rxd1 {[%clk 0:02:01]}  Rc8 {[%clk 0:02:31]} 13. Bxa6 {[%clk 0:01:31]}  bxa6 {[%clk 0:02:29]} 14. Nd6+ {[%clk 0:01:32]}  Bxd6 {[%clk 0:02:28]} 15. Rxd6 {[%clk 0:01:33]}  Rc6 {[%clk 0:02:26]} 16. Rxc6 {[%clk 0:01:14]}  Bxc6 {[%clk 0:02:26]} 17. Be3 {[%clk 0:01:15]}  Ne4 {[%clk 0:02:22]} 18. Nxe4 {[%clk 0:01:12]}  Bxe4 {[%clk 0:02:23]} 19. Bxa7 {[%clk 0:01:07]}  f6 {[%clk 0:02:13]} 20. Rd1 {[%clk 0:01:00]}  h5 {[%clk 0:02:06]} 21. f3 {[%clk 0:00:54]}  Bf5 {[%clk 0:01:44]} 22. Rd6 {[%clk 0:00:44]}  Kf7 {[%clk 0:01:43]} 23. c4 {[%clk 0:00:42]}  a5 {[%clk 0:01:40]} 24. Rd7+ {[%clk 0:00:35]}  Kg6 {[%clk 0:01:40]} 25. c5 {[%clk 0:00:36]}  e5 {[%clk 0:01:39]} 26. Rd6 {[%clk 0:00:34]}  a4 {[%clk 0:01:13]} 27. c6 {[%clk 0:00:33]}  h4 {[%clk 0:00:52]} 28. c7 {[%clk 0:00:32]}  Ra8 {[%clk 0:00:51]} 29. Bb6 {[%clk 0:00:30]}  Ra6 {[%clk 0:00:46]} 30. Kf2 {[%clk 0:00:30]}  Kf7 {[%clk 0:00:38]} 31. Bc5 {[%clk 0:00:05]}  Ra5 {[%clk 0:00:07]} 32. Bb4 {[%clk 0:00:03]}  Rb5 {[%clk 0:00:03]} 33. a3 {[%clk 0:00:03]}  Rb7 {[%clk 0:00:03]} 34. Rc6 {[%clk 0:00:04]}  Bc8 {[%clk 0:00:03]} 35. Ke3 {[%clk 0:00:04]}  Ke8 {[%clk 0:00:04]} 36. Rc5 {[%clk 0:00:02]}  Kd7 {[%clk 0:00:02]} 37. Ra5 {[%clk 0:00:03]}  Rxc7 {[%clk 0:00:02]} 38. Rxa4 {[%clk 0:00:03]}  Rc2 {[%clk 0:00:03]} 39. Ra7+ {[%clk 0:00:03]}  Ke6 {[%clk 0:00:04]} 40. Rxg7 {[%clk 0:00:02]}  f5 {[%clk 0:00:04]} 41. f4 {[%clk 0:00:02]}  e4 {[%clk 0:00:03]} 42. Kd4 {[%clk 0:00:02]}  Rf2 {[%clk 0:00:01]} 43. Ke3 {[%clk 0:00:02]}  Rf1 {[%clk 0:00:01]} 44. Rg6+ {[%clk 0:00:02]}  Kf7 {[%clk 0:00:01]} 45. Rh6 {[%clk 0:00:02]}  Be6 {[%clk 0:00:01]} 46. Rxh4 {[%clk 0:00:02]}  Rb1 {[%clk 0:00:01]} 47. Bc3 {[%clk 0:00:03]}  Rd1 {[%clk 0:00:01]} 48. Rh7+ {[%clk 0:00:02]}  Kg6 {[%clk 0:00:02]} 49. Rg7+ {[%clk 0:00:03]}  Kh6 {[%clk 0:00:03]} 50. Re7 {[%clk 0:00:03]}  Rd3+ {[%clk 0:00:03]} 51. Kf2 {[%clk 0:00:03]}  Bc4 {[%clk 0:00:03]} 52. Re5 {[%clk 0:00:03]}  Kg6 {[%clk 0:00:03]} 53. h3 {[%clk 0:00:03]}  Rd1 {[%clk 0:00:03]} 54. g4 {[%clk 0:00:03]}  Rf1+ {[%clk 0:00:03]} 55. Ke3 {[%clk 0:00:03]}  Rf3+ {[%clk 0:00:01]} 56. Kd4 {[%clk 0:00:03]}  Bd3 {[%clk 0:00:01]} 57. Rxf5 {[%clk 0:00:03]}  Rxh3 {[%clk 0:00:01]} 58. Rg5+ {[%clk 0:00:03]}  Kh6 {[%clk 0:00:02]} 59. Re5 {[%clk 0:00:03]}  Rg3 {[%clk 0:00:02]} 60. g5+ {[%clk 0:00:03]}  Kg6 {[%clk 0:00:02]} 61. a4 {[%clk 0:00:03]}  Bc2 {[%clk 0:00:02]} 62. a5 {[%clk 0:00:04]}  Rd3+ {[%clk 0:00:02]} 63. Kc5 {[%clk 0:00:03]}  Rf3 {[%clk 0:00:02]} 64. a6 {[%clk 0:00:03]}  Rxf4 {[%clk 0:00:02]} 65. a7 {[%clk 0:00:04]}  Rf8 {[%clk 0:00:02]} 66. Kb6 {[%clk 0:00:04]}  Bb3 {[%clk 0:00:01]} 67. Kb7 {[%clk 0:00:04]}  Rf7+ {[%clk 0:00:01]} 68. Kb6 {[%clk 0:00:05]}  Rf8 {[%clk 0:00:01]} 69. Bb4 {[%clk 0:00:05]}  Rg8 {[%clk 0:00:01]} 70. Be7 {[%clk 0:00:05]}  Kh5 {[%clk 0:00:00]} 71. Rxe4 {[%clk 0:00:04]} 1-0


[Site "https://www.chess.com"]

[Event "Titled Tuesday Blitz November 14 Late 2023"]
[White "Tabatabaei, M. Amin"]
[Black "Bazeev, German"]
[WhiteFideId "12521213"]
[BlackFideId "24119350"]
[WhiteElo "3092"]
[BlackElo "2816"]
[Result "1/2-1/2"]
[Round "6"]
[TimeControl "180+1"]
[Date "2023.11.14"]
[WhiteClock "0:00:03"]
[BlackClock "0:00:15"]
[Board "6"]

1. e4 {[%clk 0:01:12]}  c5 {[%clk 0:02:49]} 2. Nf3 {[%clk 0:01:13]}  Nc6 {[%clk 0:02:48]} 3. Bb5 {[%clk 0:01:12]}  g6 {[%clk 0:02:48]} 4. Bxc6 {[%clk 0:01:13]}  dxc6 {[%clk 0:02:49]} 5. d3 {[%clk 0:01:13]}  Bg7 {[%clk 0:02:46]} 6. h3 {[%clk 0:01:13]}  Qc7 {[%clk 0:02:45]} 7. Nc3 {[%clk 0:01:11]}  h6 {[%clk 0:02:42]} 8. Be3 {[%clk 0:01:11]}  b6 {[%clk 0:02:42]} 9. a4 {[%clk 0:01:12]}  a5 {[%clk 0:02:42]} 10. O-O {[%clk 0:01:10]}  e5 {[%clk 0:02:39]} 11. Nd2 {[%clk 0:01:09]}  g5 {[%clk 0:02:39]} 12. Nc4 {[%clk 0:01:08]}  Be6 {[%clk 0:02:35]} 13. b3 {[%clk 0:01:08]}  Ne7 {[%clk 0:02:34]} 14. Ne2 {[%clk 0:01:08]}  g4 {[%clk 0:02:25]} 15. hxg4 {[%clk 0:01:08]}  Bxg4 {[%clk 0:02:26]} 16. f3 {[%clk 0:01:08]}  Be6 {[%clk 0:02:24]} 17. Qe1 {[%clk 0:01:07]}  O-O-O {[%clk 0:02:14]} 18. Qh4 {[%clk 0:01:04]}  h5 {[%clk 0:02:10]} 19. Ng3 {[%clk 0:01:03]}  Ng6 {[%clk 0:02:10]} 20. Qh2 {[%clk 0:01:03]}  h4 {[%clk 0:02:05]} 21. Nf5 {[%clk 0:01:03]}  Bf6 {[%clk 0:02:02]} 22. Kf2 {[%clk 0:00:57]}  Bxf5 {[%clk 0:02:00]} 23. exf5 {[%clk 0:00:57]}  Nf4 {[%clk 0:02:01]} 24. Rae1 {[%clk 0:00:52]}  Rdg8 {[%clk 0:01:48]} 25. Bxf4 {[%clk 0:00:48]}  exf4 {[%clk 0:01:48]} 26. Re4 {[%clk 0:00:46]}  h3 {[%clk 0:01:41]} 27. gxh3 {[%clk 0:00:44]}  Rg3 {[%clk 0:01:41]} 28. Rh1 {[%clk 0:00:35]}  b5 {[%clk 0:01:37]} 29. Nd2 {[%clk 0:00:35]}  c4 {[%clk 0:01:33]} 30. bxc4 {[%clk 0:00:35]}  Rhg8 {[%clk 0:01:27]} 31. axb5 {[%clk 0:00:29]}  Qb6+ {[%clk 0:01:25]} 32. Kf1 {[%clk 0:00:27]}  a4 {[%clk 0:01:23]} 33. Rxf4 {[%clk 0:00:22]}  Qe3 {[%clk 0:01:14]} 34. Rg4 {[%clk 0:00:22]}  Rxf3+ {[%clk 0:01:11]} 35. Nxf3 {[%clk 0:00:17]}  Qxf3+ {[%clk 0:01:12]} 36. Qf2 {[%clk 0:00:18]}  Qxh1+ {[%clk 0:01:04]} 37. Ke2 {[%clk 0:00:18]}  Re8+ {[%clk 0:00:52]} 38. Kd2 {[%clk 0:00:18]}  Qa1 {[%clk 0:00:46]} 39. d4 {[%clk 0:00:15]}  Qb2 {[%clk 0:00:36]} 40. Qg2 {[%clk 0:00:10]}  Qb4+ {[%clk 0:00:36]} 41. Kd3 {[%clk 0:00:11]}  Qd6 {[%clk 0:00:29]} 42. c5 {[%clk 0:00:11]}  Qd5 {[%clk 0:00:27]} 43. Qxd5 {[%clk 0:00:11]}  cxd5 {[%clk 0:00:28]} 44. Rg1 {[%clk 0:00:11]}  Rh8 {[%clk 0:00:20]} 45. Rh1 {[%clk 0:00:11]}  Kc7 {[%clk 0:00:18]} 46. c3 {[%clk 0:00:12]}  Rb8 {[%clk 0:00:18]} 47. Rb1 {[%clk 0:00:09]}  Rh8 {[%clk 0:00:16]} 48. Rh1 {[%clk 0:00:09]}  Rb8 {[%clk 0:00:15]} 49. Rb1 {[%clk 0:00:09]}  Rh8 {[%clk 0:00:15]} 50. Rh1 {[%clk 0:00:03]} 1/2-1/2


[Site "https://www.chess.com"]

[Event "Titled Tuesday Blitz November 14 Late 2023"]
[White "Dragomirescu, Robin-Alexandru"]
[Black "Hakobyan, Aram"]
[WhiteFideId "1213849"]
[BlackFideId "13306677"]
[WhiteElo "2591"]
[BlackElo "3032"]
[Result "1-0"]
[Round "6"]
[TimeControl "180+1"]
[Date "2023.11.14"]
[WhiteClock "0:00:06"]
[BlackClock "0:00:00"]
[Board "7"]

1. b3 {[%clk 0:03:00]}  d5 {[%clk 0:02:57]} 2. Bb2 {[%clk 0:03:01]}  Nf6 {[%clk 0:02:55]} 3. e3 {[%clk 0:03:02]}  Bf5 {[%clk 0:02:53]} 4. Nf3 {[%clk 0:03:02]}  e6 {[%clk 0:02:53]} 5. c4 {[%clk 0:03:03]}  Be7 {[%clk 0:02:51]} 6. Nc3 {[%clk 0:03:03]}  O-O {[%clk 0:02:49]} 7. d4 {[%clk 0:03:03]}  Nbd7 {[%clk 0:02:45]} 8. Bd3 {[%clk 0:03:03]}  Bg6 {[%clk 0:02:40]} 9. O-O {[%clk 0:03:03]}  c6 {[%clk 0:02:39]} 10. a3 {[%clk 0:02:55]}  Qb6 {[%clk 0:02:36]} 11. b4 {[%clk 0:02:50]}  Bxd3 {[%clk 0:02:34]} 12. Qxd3 {[%clk 0:02:50]}  Qa6 {[%clk 0:02:34]} 13. Nd2 {[%clk 0:02:39]}  Nb6 {[%clk 0:02:04]} 14. b5 {[%clk 0:02:31]}  dxc4 {[%clk 0:02:04]} 15. Nxc4 {[%clk 0:02:21]}  cxb5 {[%clk 0:02:04]} 16. Ne5 {[%clk 0:02:12]}  Nc4 {[%clk 0:02:01]} 17. Rfb1 {[%clk 0:01:52]}  Rfd8 {[%clk 0:01:59]} 18. Qe2 {[%clk 0:01:40]}  Rac8 {[%clk 0:01:59]} 19. a4 {[%clk 0:01:33]}  b4 {[%clk 0:01:47]} 20. Nb5 {[%clk 0:01:24]}  Nxe5 {[%clk 0:01:47]} 21. dxe5 {[%clk 0:01:22]}  Ne4 {[%clk 0:01:44]} 22. Bd4 {[%clk 0:01:21]}  b6 {[%clk 0:01:00]} 23. f3 {[%clk 0:01:17]}  Nc5 {[%clk 0:00:57]} 24. Rxb4 {[%clk 0:01:13]}  Qb7 {[%clk 0:00:53]} 25. Rb2 {[%clk 0:00:46]}  Qd7 {[%clk 0:00:52]} 26. g4 {[%clk 0:00:22]}  h6 {[%clk 0:00:50]} 27. Kg2 {[%clk 0:00:23]}  Rc6 {[%clk 0:00:45]} 28. Nc3 {[%clk 0:00:21]}  Rdc8 {[%clk 0:00:43]} 29. a5 {[%clk 0:00:21]}  Qd8 {[%clk 0:00:36]} 30. axb6 {[%clk 0:00:21]}  axb6 {[%clk 0:00:37]} 31. Ra7 {[%clk 0:00:19]}  R6c7 {[%clk 0:00:33]} 32. Nb5 {[%clk 0:00:19]}  Rxa7 {[%clk 0:00:32]} 33. Nxa7 {[%clk 0:00:19]}  Rc7 {[%clk 0:00:32]} 34. Nb5 {[%clk 0:00:20]}  Rd7 {[%clk 0:00:33]} 35. Qc4 {[%clk 0:00:18]}  g6 {[%clk 0:00:30]} 36. Ra2 {[%clk 0:00:17]}  Kg7 {[%clk 0:00:30]} 37. h3 {[%clk 0:00:15]}  Rd5 {[%clk 0:00:22]} 38. Ra7 {[%clk 0:00:13]}  Nd7 {[%clk 0:00:22]} 39. Qc7 {[%clk 0:00:05]}  Rxb5 {[%clk 0:00:17]} 40. Qxd8 {[%clk 0:00:04]}  Bxd8 {[%clk 0:00:18]} 41. Rxd7 {[%clk 0:00:05]}  Bh4 {[%clk 0:00:16]} 42. Rb7 {[%clk 0:00:03]}  Ra5 {[%clk 0:00:17]} 43. Rxb6 {[%clk 0:00:03]}  Ra2+ {[%clk 0:00:18]} 44. Kg1 {[%clk 0:00:03]}  Rf2 {[%clk 0:00:12]} 45. f4 {[%clk 0:00:03]}  Rf3 {[%clk 0:00:13]} 46. Kg2 {[%clk 0:00:03]}  Rg3+ {[%clk 0:00:14]} 47. Kh2 {[%clk 0:00:04]}  h5 {[%clk 0:00:14]} 48. g5 {[%clk 0:00:04]}  Rf3 {[%clk 0:00:14]} 49. Rb2 {[%clk 0:00:04]}  Rf1 {[%clk 0:00:14]} 50. Kg2 {[%clk 0:00:04]}  Re1 {[%clk 0:00:14]} 51. Bc5 {[%clk 0:00:04]}  Rc1 {[%clk 0:00:12]} 52. Be7 {[%clk 0:00:04]}  Rc8 {[%clk 0:00:12]} 53. Bf6+ {[%clk 0:00:05]}  Kg8 {[%clk 0:00:11]} 54. Re2 {[%clk 0:00:05]}  Rc1 {[%clk 0:00:10]} 55. Kf3 {[%clk 0:00:06]}  Rc8 {[%clk 0:00:08]} 56. Ke4 {[%clk 0:00:05]}  Rc1 {[%clk 0:00:08]} 57. Rb2 {[%clk 0:00:05]}  Rc8 {[%clk 0:00:08]} 58. Rb7 {[%clk 0:00:04]}  Bf2 {[%clk 0:00:08]} 59. Kf3 {[%clk 0:00:04]}  Be1 {[%clk 0:00:08]} 60. e4 {[%clk 0:00:04]}  Bc3 {[%clk 0:00:06]} 61. f5 {[%clk 0:00:05]}  exf5 {[%clk 0:00:05]} 62. exf5 {[%clk 0:00:05]}  gxf5 {[%clk 0:00:06]} 63. Kf4 {[%clk 0:00:06]}  Kf8 {[%clk 0:00:04]} 64. Kxf5 {[%clk 0:00:06]}  Bd2 {[%clk 0:00:04]} 65. g6 {[%clk 0:00:06]}  fxg6+ {[%clk 0:00:04]} 66. Kxg6 {[%clk 0:00:07]}  Ke8 {[%clk 0:00:04]} 67. e6 {[%clk 0:00:06]}  Bf4 {[%clk 0:00:03]} 68. Re7+ {[%clk 0:00:06]}  Kf8 {[%clk 0:00:00]} 69. Rh7 {[%clk 0:00:06]} 1-0


[Site "https://www.chess.com"]

[Event "Titled Tuesday Blitz November 14 Late 2023"]
[White "MKlose11"]
[Black "Nakamura, Hikaru"]
[BlackFideId "2016192"]
[WhiteElo "2690"]
[BlackElo "3282"]
[Result "0-1"]
[Round "6"]
[TimeControl "180+1"]
[Date "2023.11.14"]
[WhiteClock "0:00:13"]
[BlackClock "0:01:13"]
[Board "8"]

1. e4 {[%clk 0:02:57]}  b6 {[%clk 0:03:00]} 2. d4 {[%clk 0:02:40]}  e6 {[%clk 0:03:01]} 3. Bd3 {[%clk 0:02:40]}  d5 {[%clk 0:03:01]} 4. e5 {[%clk 0:02:38]}  Ba6 {[%clk 0:03:01]} 5. Bxa6 {[%clk 0:02:36]}  Nxa6 {[%clk 0:03:02]} 6. Nf3 {[%clk 0:02:36]}  Qd7 {[%clk 0:03:02]} 7. O-O {[%clk 0:02:36]}  c5 {[%clk 0:03:02]} 8. c3 {[%clk 0:02:36]}  Ne7 {[%clk 0:03:02]} 9. Qe2 {[%clk 0:02:33]}  Nc7 {[%clk 0:03:02]} 10. Be3 {[%clk 0:02:33]}  Nf5 {[%clk 0:02:59]} 11. Nbd2 {[%clk 0:02:33]}  Qb5 {[%clk 0:02:58]} 12. Qxb5+ {[%clk 0:02:01]}  Nxb5 {[%clk 0:02:59]} 13. g4 {[%clk 0:02:01]}  Nxe3 {[%clk 0:02:56]} 14. fxe3 {[%clk 0:02:02]}  Be7 {[%clk 0:02:55]} 15. Kf2 {[%clk 0:01:54]}  a5 {[%clk 0:02:52]} 16. a4 {[%clk 0:01:53]}  Na7 {[%clk 0:02:52]} 17. c4 {[%clk 0:01:48]}  Nc6 {[%clk 0:02:47]} 18. Rfd1 {[%clk 0:01:40]}  O-O-O {[%clk 0:02:41]} 19. Rac1 {[%clk 0:01:40]}  Kb7 {[%clk 0:02:41]} 20. Ke2 {[%clk 0:01:36]}  g5 {[%clk 0:02:41]} 21. cxd5 {[%clk 0:01:31]}  exd5 {[%clk 0:02:40]} 22. dxc5 {[%clk 0:01:25]}  h5 {[%clk 0:02:39]} 23. h3 {[%clk 0:01:23]}  bxc5 {[%clk 0:02:36]} 24. e4 {[%clk 0:01:10]}  hxg4 {[%clk 0:02:11]} 25. hxg4 {[%clk 0:01:11]}  Nd4+ {[%clk 0:02:11]} 26. Nxd4 {[%clk 0:01:10]}  Rh2+ {[%clk 0:02:11]} 27. Kf3 {[%clk 0:01:07]}  cxd4 {[%clk 0:02:06]} 28. exd5 {[%clk 0:01:05]}  Rxd5 {[%clk 0:02:06]} 29. Nc4 {[%clk 0:01:01]}  Ka6 {[%clk 0:01:43]} 30. Ke4 {[%clk 0:01:01]}  Rc5 {[%clk 0:01:38]} 31. Rxd4 {[%clk 0:00:59]}  Rf2 {[%clk 0:01:35]} 32. b3 {[%clk 0:00:56]}  Rc7 {[%clk 0:01:32]} 33. Rcd1 {[%clk 0:00:54]}  Rf4+ {[%clk 0:01:31]} 34. Ke3 {[%clk 0:00:54]}  Bc5 {[%clk 0:01:31]} 35. Nd6 {[%clk 0:00:42]}  Re7 {[%clk 0:01:16]} 36. Nc4 {[%clk 0:00:37]}  Rxg4 {[%clk 0:01:16]} 37. Nxa5 {[%clk 0:00:16]}  Rxd4 {[%clk 0:01:14]} 38. Rxd4 {[%clk 0:00:13]}  Bxd4+ {[%clk 0:01:13]} 0-1


[Site "https://www.chess.com"]

[Event "Titled Tuesday Blitz November 14 Late 2023"]
[White "Paravyan, David"]
[Black "Rastbod, Ali"]
[WhiteFideId "4194985"]
[BlackFideId "12567477"]
[WhiteElo "3020"]
[BlackElo "2782"]
[Result "1-0"]
[Round "6"]
[TimeControl "180+1"]
[Date "2023.11.14"]
[WhiteClock "0:00:08"]
[BlackClock "0:00:00"]
[Board "9"]

1. e4 {[%clk 0:03:00]}  e6 {[%clk 0:02:55]} 2. d4 {[%clk 0:03:00]}  d5 {[%clk 0:02:56]} 3. Nc3 {[%clk 0:03:00]}  Bb4 {[%clk 0:02:54]} 4. exd5 {[%clk 0:02:57]}  exd5 {[%clk 0:02:54]} 5. Bd3 {[%clk 0:02:57]}  Nc6 {[%clk 0:02:55]} 6. a3 {[%clk 0:02:57]}  Bxc3+ {[%clk 0:02:53]} 7. bxc3 {[%clk 0:02:57]}  Nge7 {[%clk 0:02:51]} 8. Qh5 {[%clk 0:02:50]}  Be6 {[%clk 0:02:50]} 9. Ne2 {[%clk 0:02:48]}  Qd7 {[%clk 0:02:49]} 10. h3 {[%clk 0:02:45]}  Bf5 {[%clk 0:02:48]} 11. O-O {[%clk 0:02:41]}  O-O {[%clk 0:02:24]} 12. Ng3 {[%clk 0:02:38]}  Bxd3 {[%clk 0:02:11]} 13. cxd3 {[%clk 0:02:39]}  f5 {[%clk 0:02:12]} 14. Ne2 {[%clk 0:02:26]}  Ng6 {[%clk 0:02:12]} 15. Nf4 {[%clk 0:02:26]}  Nce7 {[%clk 0:02:04]} 16. Re1 {[%clk 0:02:25]}  Nxf4 {[%clk 0:02:02]} 17. Bxf4 {[%clk 0:02:26]}  Ng6 {[%clk 0:02:03]} 18. Qf3 {[%clk 0:02:24]}  c6 {[%clk 0:02:01]} 19. Re3 {[%clk 0:02:23]}  Rae8 {[%clk 0:02:00]} 20. Rae1 {[%clk 0:02:21]}  Rxe3 {[%clk 0:01:55]} 21. Qxe3 {[%clk 0:02:21]}  Kf7 {[%clk 0:01:56]} 22. Be5 {[%clk 0:02:20]}  Kg8 {[%clk 0:01:50]} 23. g3 {[%clk 0:02:14]}  f4 {[%clk 0:01:25]} 24. Bxf4 {[%clk 0:02:11]}  Qxh3 {[%clk 0:01:20]} 25. Bd6 {[%clk 0:02:08]}  Rd8 {[%clk 0:00:57]} 26. Bb4 {[%clk 0:01:52]}  h6 {[%clk 0:00:50]} 27. a4 {[%clk 0:01:46]}  Kh7 {[%clk 0:00:41]} 28. Qe6 {[%clk 0:01:45]}  Qxe6 {[%clk 0:00:35]} 29. Rxe6 {[%clk 0:01:46]}  Rd7 {[%clk 0:00:30]} 30. a5 {[%clk 0:01:45]}  a6 {[%clk 0:00:30]} 31. f4 {[%clk 0:01:43]}  Nh8 {[%clk 0:00:29]} 32. Kf2 {[%clk 0:01:42]}  Nf7 {[%clk 0:00:28]} 33. Kf3 {[%clk 0:01:41]}  h5 {[%clk 0:00:25]} 34. Bc5 {[%clk 0:01:18]}  Nh6 {[%clk 0:00:25]} 35. Re5 {[%clk 0:01:17]}  g6 {[%clk 0:00:23]} 36. c4 {[%clk 0:01:15]}  Nf5 {[%clk 0:00:20]} 37. g4 {[%clk 0:00:39]}  hxg4+ {[%clk 0:00:20]} 38. Kxg4 {[%clk 0:00:40]}  Kg7 {[%clk 0:00:21]} 39. Re8 {[%clk 0:00:34]}  Kf7 {[%clk 0:00:19]} 40. Rb8 {[%clk 0:00:33]}  Kg7 {[%clk 0:00:15]} 41. cxd5 {[%clk 0:00:28]}  cxd5 {[%clk 0:00:15]} 42. Rc8 {[%clk 0:00:28]}  Nh6+ {[%clk 0:00:12]} 43. Kf3 {[%clk 0:00:28]}  Nf5 {[%clk 0:00:12]} 44. Kg4 {[%clk 0:00:28]}  Nh6+ {[%clk 0:00:12]} 45. Kh4 {[%clk 0:00:29]}  Nf7 {[%clk 0:00:07]} 46. Bf8+ {[%clk 0:00:27]}  Kf6 {[%clk 0:00:07]} 47. Kg4 {[%clk 0:00:26]}  Ke6 {[%clk 0:00:04]} 48. Re8+ {[%clk 0:00:22]}  Kf6 {[%clk 0:00:04]} 49. Kf3 {[%clk 0:00:08]}  Kf5 {[%clk 0:00:04]} 50. Re1 {[%clk 0:00:06]}  g5 {[%clk 0:00:04]} 51. fxg5 {[%clk 0:00:05]}  Nxg5+ {[%clk 0:00:05]} 52. Ke3 {[%clk 0:00:05]}  Rf7 {[%clk 0:00:03]} 53. Bc5 {[%clk 0:00:04]}  Ke6 {[%clk 0:00:03]} 54. Rb1 {[%clk 0:00:03]}  Kf5 {[%clk 0:00:02]} 55. Rb6 {[%clk 0:00:04]}  Nh3 {[%clk 0:00:01]} 56. Rd6 {[%clk 0:00:04]}  Nf4 {[%clk 0:00:02]} 57. Kf3 {[%clk 0:00:04]}  Rg7 {[%clk 0:00:02]} 58. Rd8 {[%clk 0:00:04]}  Rf7 {[%clk 0:00:02]} 59. Ke3 {[%clk 0:00:03]}  Rf6 {[%clk 0:00:01]} 60. Kd2 {[%clk 0:00:03]}  Rf7 {[%clk 0:00:01]} 61. Bd6 {[%clk 0:00:03]}  Rf6 {[%clk 0:00:02]} 62. Bxf4 {[%clk 0:00:03]}  Kxf4 {[%clk 0:00:03]} 63. Rxd5 {[%clk 0:00:04]}  Rc6 {[%clk 0:00:03]} 64. Rc5 {[%clk 0:00:04]}  Rd6 {[%clk 0:00:03]} 65. Rc4 {[%clk 0:00:02]}  Kf5 {[%clk 0:00:04]} 66. Kc3 {[%clk 0:00:03]}  Ke6 {[%clk 0:00:04]} 67. Rb4 {[%clk 0:00:03]}  Kd7 {[%clk 0:00:04]} 68. Kc4 {[%clk 0:00:04]}  Kc7 {[%clk 0:00:05]} 69. d5 {[%clk 0:00:03]}  Rh6 {[%clk 0:00:05]} 70. Kc5 {[%clk 0:00:04]}  Rh5 {[%clk 0:00:05]} 71. Rf4 {[%clk 0:00:04]}  Rh7 {[%clk 0:00:05]} 72. d4 {[%clk 0:00:04]}  Rd7 {[%clk 0:00:05]} 73. Rf6 {[%clk 0:00:04]}  Rh7 {[%clk 0:00:04]} 74. Rf4 {[%clk 0:00:04]}  Rg7 {[%clk 0:00:04]} 75. Re4 {[%clk 0:00:04]}  Rf7 {[%clk 0:00:04]} 76. Re7+ {[%clk 0:00:05]}  Rxe7 {[%clk 0:00:04]} 77. d6+ {[%clk 0:00:05]}  Kd7 {[%clk 0:00:04]} 78. dxe7 {[%clk 0:00:06]}  Kxe7 {[%clk 0:00:05]} 79. Kb6 {[%clk 0:00:07]}  Kd6 {[%clk 0:00:05]} 80. Kxb7 {[%clk 0:00:07]}  Kd5 {[%clk 0:00:06]} 81. Kxa6 {[%clk 0:00:08]}  Kxd4 {[%clk 0:00:00]} 82. Kb7 {[%clk 0:00:08]} 1-0


[Site "https://www.chess.com"]

[Event "Titled Tuesday Blitz November 14 Late 2023"]
[White "Hambleton, Aman"]
[Black "Ibarra Jerez, Jose Carlos"]
[WhiteFideId "2606577"]
[BlackFideId "2226332"]
[WhiteElo "2725"]
[BlackElo "2961"]
[Result "0-1"]
[Round "6"]
[TimeControl "180+1"]
[Date "2023.11.14"]
[WhiteClock "0:00:00"]
[BlackClock "0:00:20"]
[Board "12"]

1. d4 {[%clk 0:02:59]}  Nf6 {[%clk 0:02:59]} 2. Bf4 {[%clk 0:02:59]}  d5 {[%clk 0:02:59]} 3. e3 {[%clk 0:02:58]}  c5 {[%clk 0:03:00]} 4. c3 {[%clk 0:02:58]}  Nc6 {[%clk 0:03:00]} 5. Nd2 {[%clk 0:02:58]}  e6 {[%clk 0:02:59]} 6. Ngf3 {[%clk 0:02:58]}  Nh5 {[%clk 0:02:59]} 7. Be5 {[%clk 0:02:56]}  cxd4 {[%clk 0:02:48]} 8. cxd4 {[%clk 0:02:33]}  f6 {[%clk 0:02:41]} 9. Bg3 {[%clk 0:02:32]}  Qb6 {[%clk 0:02:41]} 10. Qb3 {[%clk 0:02:29]}  Nxg3 {[%clk 0:02:25]} 11. hxg3 {[%clk 0:02:27]}  Qxb3 {[%clk 0:02:23]} 12. Nxb3 {[%clk 0:02:28]}  b6 {[%clk 0:02:16]} 13. Bd3 {[%clk 0:02:18]}  Kf7 {[%clk 0:02:15]} 14. Rc1 {[%clk 0:02:02]}  Bd7 {[%clk 0:02:15]} 15. a3 {[%clk 0:01:34]}  Bd6 {[%clk 0:02:05]} 16. Ke2 {[%clk 0:00:26]}  h6 {[%clk 0:01:57]} 17. Nbd2 {[%clk 0:00:23]}  Rhe8 {[%clk 0:01:07]} 18. Rhd1 {[%clk 0:00:10]}  Rac8 {[%clk 0:01:00]} 19. Kf1 {[%clk 0:00:09]}  Na5 {[%clk 0:00:51]} 20. Ke2 {[%clk 0:00:01]}  b5 {[%clk 0:00:50]} 21. Rxc8 {[%clk 0:00:01]}  Rxc8 {[%clk 0:00:50]} 22. Ne1 {[%clk 0:00:01]}  Nc4 {[%clk 0:00:47]} 23. Rb1 {[%clk 0:00:02]}  e5 {[%clk 0:00:38]} 24. Nb3 {[%clk 0:00:02]}  e4 {[%clk 0:00:30]} 25. Bxc4 {[%clk 0:00:02]}  bxc4 {[%clk 0:00:28]} 26. Nd2 {[%clk 0:00:02]}  Bb5 {[%clk 0:00:24]} 27. Kd1 {[%clk 0:00:02]}  Ba4+ {[%clk 0:00:24]} 28. Ke2 {[%clk 0:00:01]}  Bb5 {[%clk 0:00:21]} 29. Kd1 {[%clk 0:00:01]}  a6 {[%clk 0:00:21]} 30. Rc1 {[%clk 0:00:00]}  Rb8 {[%clk 0:00:20]} 0-1


[Site "https://www.chess.com"]